bitfinex-derivatives/quotes_ETHF0:USTF0_20250320
["timestamp","ask_amount","ask_price","bid_price","bid_amount"]
[1742490240426,2.34599,1961.6,1961.4,0.00766205]
[1742490240627,1.02011,1961.5,1961.4,0.00766205]
[1742490240837,2.34601,1961.5,1961.4,0.00766205]
[1742490241032,2.34601,1961.5,1961.4,2.32602205]
[1742490241339,2.34601,1961.5,1961.4,0.00766205]
[1742490241733,5.55381,1961.5,1961.4,0.00766205]
[1742490242635,1.02027,1961.2,1961.1,42.8396]
[1742490243032,1.02037,1961.1,1960.9,1.3055]
[1742490243233,1.02037,1961.0,1960.9,1.3055]
[1742490243445,1.02048,1960.8,1960.7,3.8861]
[1742490243734,1.34526205,1960.9,1960.8,1.02048]
[1742490243936,1.34526205,1960.9,1960.8,2.32598]
[1742490244240,0.00766205,1960.9,1960.8,5.53378]
[1742490244741,1.02808205,1960.9,1960.8,2.32598]
[1742490245136,0.00766205,1960.9,1960.8,8.98178]
[1742490245643,1.02808205,1960.9,1960.8,4.7535]
[1742490245849,0.00766205,1960.9,1960.8,5.77398]
[1742490246039,0.00766205,1960.9,1960.8,8.98178]
[1742490246441,0.00766205,1960.9,1960.8,7.9613]
[1742490246642,1.02808205,1960.9,1960.8,45.5535]
[1742490246943,1.02053,1960.7,1960.6,2.04776205]
[1742490247543,2.43973,1960.7,1960.6,2.04776205]
[1742490247934,2.43973,1960.7,1960.6,0.00766205]
[1742490251849,5.90273,1960.7,1960.6,0.00766205]
[1742490252244,1.02053,1960.7,1960.6,0.00766205]
[1742490252443,4.5559,1960.8,1960.6,1.99486205]
[1742490252648,2.36863,1960.7,1960.6,0.65676205]
[1742490253250,2.36863,1960.7,1960.6,41.45676205]
[1742490254151,2.36863,1960.7,1960.6,0.00766205]
[1742490254347,3.07983,1960.7,1960.6,0.00766205]
[1742490255244,5.57983,1960.7,1960.5,4.3229]
[1742490255442,8.33578,1960.6,1960.5,1.23493]
[1742490255740,1.02084,1960.1,1960.0,40.8]
[1742490256443,1.02089,1960.0,1959.9,0.00766205]
[1742490256739,2.33259,1960.0,1959.9,0.00766205]
[1742490256945,4.83259,1960.0,1959.9,2.05e-06]
[1742490257656,2.33259,1960.0,1959.9,2.05e-06]
[1742490258243,5.84859,1960.0,1959.9,2.05e-06]
[1742490261452,2.33259,1960.0,1959.9,2.05e-06]
[1742490262450,1.02088,1960.1,1959.9,2.05e-06]
[1742490262655,2.36623,1960.2,1960.0,1.02089]
[1742490262952,1.02079,1960.2,1960.1,1.69314]
[1742490263156,5.62868,1960.3,1960.1,1.69314]
[1742490263357,4.6079,1960.3,1960.1,1.6931]
[1742490263560,5.62866,1960.3,1960.2,1.02079]
[1742490264355,6.43103,1960.7,1960.1,4.1823]
[1742490264550,1.02068,1960.5,1960.2,3.2078]
[1742490264754,4.9101,1960.6,1960.3,1.0207]
[1742490264755,1.02069,1960.4,1960.3,1.0207]
[1742490264957,1.02074,1960.3,1960.2,1.02075]
[1742490265349,1.02078,1960.3,1960.2,1.02079]
[1742490265554,1.02072,1960.4,1960.3,1.02072]
[1742490266245,1.02077,1960.3,1960.2,1.02075]
[1742490267155,5.75914,1960.7,1960.2,3.2078]
[1742490267346,1.02074,1960.4,1960.3,1.02071]
[1742490267753,1.02079,1960.2,1960.1,5.20312]
[1742490267950,1.02079,1960.2,1960.1,4.1733]
[1742490268446,3.2078,1960.8,1960.2,2.55186]
[1742490268657,1.02049,1960.8,1960.7,1.02053]
[1742490268856,3.95328205,1960.9,1960.6,1.02057]
[1742490269056,3.95328205,1960.9,1960.8,1.02048]
[1742490269057,0.00766205,1960.9,1960.8,1.02048]
[1742490269854,1.02033,1961.1,1961.0,1.02035]
[1742490270457,1.3959,1961.3,1961.1,1.0203]
[1742490270759,2.41615,1961.3,1961.2,2.0606]
[1742490270951,1.02014,1961.5,1961.2,2.0606]
[1742490271156,1.02014,1961.5,1961.3,1.02022]
[1742490271157,0.00766205,1961.4,1961.3,1.02022]
[1742490271658,1.66376,1961.9,1961.7,1.02001]
[1742490271851,3.05963,1961.9,1961.7,1.02001]
[1742490272053,3.2078,1962.7,1961.8,3.2078]
[1742490272250,4.5513,1962.7,1962.1,1.01977]
[1742490272557,4.5513,1962.7,1962.0,3.2078]
[1742490272558,3.2078,1962.5,1962.0,3.2078]
[1742490272765,6.7498,1962.5,1962.2,0.00766205]
[1742490272959,1.01968,1962.4,1962.2,0.00766205]
[1742490273155,3.2078,1962.8,1962.2,0.00766205]
[1742490273365,3.2078,1963.1,1962.5,3.2078]
[1742490273559,3.2078,1963.1,1962.3,50.3538]
[1742490273762,3.2078,1962.7,1962.1,3.2078]
[1742490273953,5.6656,1963.0,1961.7,3.8852]
[1742490273954,3.2078,1962.4,1961.7,3.8852]
[1742490274264,3.2078,1962.2,1961.7,3.8852]
[1742490274465,1.3608,1962.1,1961.9,0.00764214]
[1742490275061,1.3608,1962.1,1961.9,1.02751214]
[1742490275250,1.3608,1962.1,1961.9,4.23531214]
[1742490275451,4.3108,1962.3,1961.9,3.21544214]
[1742490275663,4.9454,1962.3,1962.1,1.01978]
[1742490275871,1.3214,1962.3,1962.2,1.01975]
[1742490276058,1.3214,1962.5,1962.1,3.2078]
[1742490276258,1.3214,1962.5,1962.3,3.2078]
[1742490276458,1.3214,1962.5,1962.3,4.22747]
[1742490276764,1.01956,1962.6,1962.3,4.2275]
[1742490276960,1.3214,1962.7,1962.5,3.2078]
[1742490277159,1.3214,1962.7,1962.4,0.6507]
[1742490277558,2.3409,1962.7,1962.4,0.6507]
[1742490277760,1.3214,1962.7,1962.4,0.6507]
[1742490277963,3.2078,1963.4,1962.5,6.8388]
[1742490278161,2.54795,1963.3,1962.8,3.2078]
[1742490278463,1.01938,1963.0,1962.8,3.2078]
[1742490278666,3.94605,1963.3,1962.9,0.00764214]
[1742490278667,1.3981,1963.3,1962.9,0.00764214]
[1742490278865,3.636,1963.6,1963.0,3.2078]
[1742490279065,1.3981,1963.5,1963.0,3.8731]
[1742490279360,2.41719,1963.5,1963.2,4.22702]
[1742490279556,2.41719,1963.5,1963.2,3.2078]
[1742490279759,1.01905,1963.6,1963.2,3.2078]
[1742490280061,1.3981,1963.7,1963.2,3.2078]
[1742490280263,2.41708,1963.7,1963.3,1.01918]
[1742490280457,1.019,1963.7,1963.4,6.8458]
[1742490280663,4.6059,1963.8,1963.4,3.2078]
[1742490280864,7.15325,1963.8,1963.2,6.8468]
[1742490281059,3.655,1963.7,1963.2,6.8468]
[1742490281367,1.3095,1963.6,1963.2,3.639]
[1742490281553,3.2078,1963.5,1963.0,3.8731]
[1742490281753,1.3095,1963.4,1963.0,0.6653]
[1742490281965,1.01933,1963.0,1962.9,0.00764214]
[1742490282765,2.32883,1963.0,1962.9,0.00764214]
[1742490282974,4.5173,1963.0,1962.3,4.3523]
[1742490283262,1.01956,1962.6,1962.3,4.3523]
[1742490283461,1.0196,1962.5,1962.3,4.3523]
[1742490283657,2.3291,1962.5,1962.3,4.3523]
[1742490283863,3.25684,1963.1,1962.4,4.22743]
[1742490283864,1.01952,1962.7,1962.4,4.22743]
[1742490284161,1.02713578,1962.6,1962.3,5.37197]
[1742490284368,0.00757578,1962.6,1962.5,1.01959]
[1742490284666,0.00757578,1962.6,1962.4,4.22741]
[1742490284863,1.33557578,1962.6,1962.4,3.2078]
[1742490285066,1.33557578,1962.6,1962.3,5.37199]
[1742490285067,1.01962,1962.5,1962.3,5.37199]
[1742490285366,1.33557578,1962.6,1962.3,5.37199]
[1742490285367,2.35515578,1962.6,1962.4,3.2078]
[1742490285667,2.35512578,1962.6,1962.4,4.22742]
[1742490285965,1.01959,1962.5,1962.4,3.2078]
[1742490286165,0.00757578,1962.6,1962.4,3.2078]
[1742490286657,1.02711578,1962.6,1962.4,4.22741]
[1742490286860,0.00757578,1962.6,1962.5,1.01959]
[1742490287165,1.01959,1962.5,1962.4,4.22741]
[1742490287364,1.36717578,1962.6,1962.5,1.01959]
[1742490287563,2.38672578,1962.6,1962.4,3.2078]
[1742490287871,1.01959,1962.5,1962.4,4.22742]
[1742490288165,0.00757578,1962.6,1962.5,1.01959]
[1742490288465,3.2078,1963.3,1963.1,1.01925]
[1742490288671,2.37888,1963.2,1963.0,3.2078]
[1742490288968,1.01928,1963.1,1963.0,4.2271]
[1742490289173,1.3596,1963.1,1963.0,4.2271]
[1742490289372,1.01928,1963.1,1963.0,44.0078]
[1742490290072,1.01926,1963.2,1963.0,46.34643]
[1742490290261,1.3596,1963.3,1963.2,1.01923]
[1742490290461,1.3596,1963.3,1963.0,45.3271]
[1742490290663,3.2078,1963.8,1963.2,3.2078]
[1742490290873,2.37367,1963.5,1963.4,4.2269]
[1742490291168,1.3546,1963.5,1963.4,4.22693]
[1742490291567,2.37367,1963.5,1963.4,3.2078]
[1742490292070,1.01913,1963.4,1963.3,0.00764214]
[1742490292275,2.37373,1963.4,1963.3,0.00764214]
[1742490292573,1.3546,1963.4,1963.3,0.00764214]
[1742490292766,2.37373,1963.4,1963.3,0.00764214]
[1742490293759,1.3546,1963.4,1963.3,1.02682214]
[1742490293960,1.01901,1963.7,1963.5,1.01902]
[1742490294175,1.01896,1963.8,1963.4,3.2078]
[1742490294374,1.01889,1963.9,1963.7,1.01896]
[1742490294667,1.3207,1963.9,1963.6,3.2078]
[1742490294870,1.3207,1963.9,1963.8,1.01892]
[1742490295174,1.3207,1963.9,1963.8,4.22672]
[1742490295377,9.43248,1964.3,1963.8,4.22672]
[1742490295672,9.43248,1964.3,1963.9,1.3707]
[1742490295673,1.01885,1964.0,1963.9,1.3707]
[1742490296062,1.01885,1964.0,1963.7,3.2078]
[1742490296269,1.01892,1963.8,1963.6,1.3707]
[1742490296462,1.01892,1963.8,1963.6,2.3897]
[1742490296463,1.01896,1963.8,1963.6,2.3897]
[1742490296668,1.3207,1963.9,1963.6,1.3707]
[1742490296975,1.01892,1963.8,1963.7,1.3089]
[1742490298081,1.01902,1963.6,1963.5,6.8888]
[1742490298772,1.01913,1963.4,1963.3,3.21544214]
[1742490298969,2.54755,1963.7,1963.3,4.23458214]
[1742490299171,1.01913,1963.4,1963.3,4.23458214]
[1742490299567,3.2078,1963.8,1963.3,3.21544214]
[1742490299772,1.01897,1963.7,1963.6,3.2078]
[1742490300077,1.01896,1963.8,1963.7,1.01894]
[1742490300272,1.01897,1963.7,1963.6,3.2078]
[1742490300473,1.01897,1963.8,1963.7,1.01893]
[1742490300774,1.01897,1963.8,1963.7,2.32343]
[1742490301277,1.01897,1963.8,1963.7,1.3045]
[1742490302179,1.01897,1963.8,1963.6,4.87068]
[1742490302180,1.01902,1963.6,1963.5,3.668]
[1742490302480,1.01913,1963.4,1963.3,7.89858214]
[1742490302783,1.01908,1963.5,1963.3,3.21544214]
[1742490302975,1.01905,1963.6,1963.5,1.01903]
[1742490303278,1.3598,1963.6,1963.5,4.22687]
[1742490303476,3.2078,1964.2,1963.6,1.01902]
[1742490303477,1.019,1963.7,1963.6,1.01902]
[1742490303681,1.3598,1963.8,1963.7,1.01894]
[1742490303977,1.01892,1963.8,1963.7,3.2078]
[1742490304185,1.01902,1963.6,1963.5,3.2078]
[1742490304482,3.90715,1963.8,1963.4,3.664]
[1742490304483,1.01907,1963.5,1963.4,3.664]
[1742490304869,1.01913,1963.4,1963.3,0.00764214]
[1742490305080,2.37893,1963.4,1963.3,0.00764214]
[1742490307879,8.08673,1963.4,1963.3,2.14e-06]
[1742490308178,1.01938,1962.9,1962.8,1.0351]
[1742490308383,7.88618,1962.9,1962.8,1.0351]
[1742490308683,7.88618,1962.9,1962.4,3.2078]
[1742490308684,9.41534,1962.9,1962.4,3.2078]
[1742490308884,1.3234,1962.8,1962.5,40.8]
[1742490309074,1.01954,1962.6,1962.5,40.8]
[1742490309277,1.01954,1962.6,1962.5,40.80764214]
[1742490309485,2.34294,1962.6,1962.5,40.80764214]
[1742490309786,6.00294,1962.6,1962.5,0.00764214]
[1742490311184,6.68534,1962.6,1962.5,0.00764214]
[1742490311889,3.02534,1962.6,1962.5,0.00764214]
[1742490312089,6.67934,1962.6,1962.5,0.00764214]
[1742490312985,1.01975,1962.2,1962.1,41.8349]
[1742490314391,1.4171,1962.3,1962.1,41.8349]
[1742490314586,1.01975,1962.2,1962.1,41.8349]
[1742490314891,1.01975,1962.2,1962.1,40.8]
[1742490315092,1.01955,1962.6,1962.4,1.01962]
[1742490315385,2.33938214,1962.8,1962.6,1.01951]
[1742490315692,2.33938214,1962.8,1962.7,41.81949]
[1742490315693,0.00764214,1962.8,1962.7,41.81949]
[1742490316382,0.00764214,1962.8,1962.7,40.8]
[1742490316578,1.02708214,1962.8,1962.7,40.8]
[1742490316787,2.54873,1962.7,1962.1,3.2078]
[1742490316983,2.54886,1962.6,1962.2,1.01973]
[1742490317285,1.0196,1962.5,1962.3,47.6958]
[1742490317482,1.3123,1962.7,1962.3,47.6958]
[1742490317690,1.01961,1962.5,1962.3,48.71547]
[1742490318082,1.01952,1962.7,1962.3,47.6958]
[1742490318286,1.01952,1962.7,1962.5,4.22734]
[1742490318486,1.01954,1962.6,1962.5,3.2078]
[1742490319100,0.00764214,1962.8,1962.5,3.2078]
[1742490319390,1.01949,1962.7,1962.6,4.70754]
[1742490319596,1.01949,1962.7,1962.6,4.9936]
[1742490319798,2.37709,1962.7,1962.6,4.9936]
[1742490319994,1.0196,1962.5,1962.3,42.85427]
[1742490320192,1.01954,1962.6,1962.5,3.687]
[1742490320394,1.01954,1962.6,1962.5,4.9926]
[1742490320594,2.37714,1962.6,1962.5,8.2004]
[1742490320794,2.37714,1962.6,1962.5,4.9926]
[1742490321003,2.37714,1962.6,1962.5,8.2004]
[1742490321402,2.37714,1962.6,1962.5,4.9926]
[1742490321602,2.37714,1962.6,1962.5,8.2004]
[1742490322000,3.2078,1963.6,1962.5,10.7004]
[1742490322214,1.01938,1962.9,1962.8,3.2078]
[1742490322402,1.01938,1962.9,1962.8,8.259]
[1742490324008,1.01938,1962.9,1962.8,3.693]
[1742490324208,1.01944,1962.8,1962.7,0.00764214]
[1742490324805,1.01944,1962.8,1962.7,1.42234214]
[1742490325106,1.01944,1962.8,1962.7,0.00764214]
[1742490325506,4.22724,1962.8,1962.7,0.00764214]
[1742490325700,3.2078,1962.8,1962.7,0.00764214]
[1742490325902,6.26154,1962.8,1962.7,0.00764214]
[1742490328510,3.05374,1962.8,1962.7,0.00764214]
[1742490328710,1.01944,1962.8,1962.7,0.00764214]
[1742490329014,4.22724,1962.8,1962.7,0.00764214]
[1742490329398,1.4092,1962.9,1962.7,0.00764214]
[1742490329711,1.01944,1962.8,1962.7,2.40232214]
[1742490329908,2.42863,1962.9,1962.7,2.40232214]
[1742490330210,1.01944,1962.8,1962.7,2.40232214]
[1742490330407,1.01944,1962.8,1962.7,3.05922214]
[1742490330599,1.01944,1962.8,1962.7,2.03974214]
[1742490330804,1.01944,1962.8,1962.7,5.24754214]
[1742490331004,0.00764214,1963.0,1962.8,1.01943]
[1742490331204,1.02702214,1963.0,1962.9,2.42638]
[1742490331405,1.02702214,1963.0,1962.9,1.407]
[1742490331908,1.02702214,1963.0,1962.9,2.42638]
[1742490332104,1.02702214,1963.0,1962.9,5.63418]
[1742490332105,0.00764214,1963.0,1962.9,5.63418]
[1742490332305,1.01918,1963.3,1963.2,1.0192]
[1742490333114,1.01918,1963.3,1963.2,2.0592]
[1742490333506,5.75586,1963.3,1962.8,1.01942]
[1742490333707,1.01938,1962.9,1962.8,5.066]
[1742490334113,1.01938,1962.9,1962.8,6.08544]
[1742490334509,1.01938,1962.9,1962.8,5.066]
[1742490334705,1.01938,1962.9,1962.8,6.08544]
[1742490334911,2.54772,1963.5,1962.8,10.11458]
[1742490335106,2.54772,1963.5,1963.1,4.22706]
[1742490335107,1.01923,1963.2,1963.1,4.22706]
[1742490335312,1.01923,1963.2,1963.1,6.8998]
[1742490335611,1.01923,1963.2,1963.1,3.692]
[1742490335811,1.01923,1963.2,1963.1,4.71128]
[1742490336417,1.01923,1963.2,1963.1,4.71125]
[1742490336615,1.01923,1963.2,1963.1,3.692]
[1742490337311,1.01933,1963.0,1962.9,9.29818]
[1742490337509,1.01933,1963.0,1962.9,1.374]
[1742490337717,1.01944,1962.8,1962.7,3.21544214]
[1742490337918,1.01944,1962.8,1962.7,4.62854214]
[1742490339915,1.01944,1962.8,1962.7,1.42074214]
[1742490340109,1.01944,1962.8,1962.7,0.00764214]
[1742490340309,4.22724,1962.8,1962.7,0.00764214]
[1742490340511,1.01944,1962.8,1962.7,0.00764214]
[1742490344523,0.6491,1963.1,1962.8,1.01944]
[1742490344822,1.01937,1963.0,1962.9,2.30818]
[1742490345217,1.01931,1963.1,1963.0,1.01933]
[1742490345516,1.01931,1963.1,1962.9,4.4966]
[1742490345517,2.54815,1963.2,1962.8,0.6772]
[1742490345711,1.01937,1963.0,1962.8,3.03239]
[1742490345910,0.62157477,2908.8,1962.9,1.3358]
[1742490346115,1.0191,1963.5,1963.4,1.01913]
[1742490346418,1.01913,1963.4,1963.3,3.2078]
[1742490346613,1.01913,1963.4,1963.3,40.8]
[1742490349022,1.01913,1963.4,1963.3,41.8332]
[1742490349524,1.01913,1963.4,1963.3,42.85238]
[1742490349724,1.01913,1963.4,1963.3,42.85235]
[1742490350125,2.33286,1963.6,1963.5,1.01907]
[1742490350322,1.3138,1963.6,1963.4,4.5385]
[1742490350718,2.33284,1963.6,1963.5,1.01907]
[1742490350918,2.33284,1963.6,1963.5,2.34977]
[1742490351627,2.33284,1963.6,1963.5,1.3307]
[1742490351826,2.33284,1963.6,1963.5,2.34977]
[1742490352027,2.33284,1963.6,1963.5,1.3307]
[1742490352530,1.01907,1963.5,1963.4,3.2078]
[1742490352725,2.37037,1963.5,1963.4,3.2078]
[1742490352926,2.37037,1963.5,1963.4,4.5001]
[1742490353423,2.37037,1963.5,1963.4,5.51923]
[1742490353929,2.37037,1963.5,1963.4,4.5001]
[1742490354132,2.37037,1963.5,1963.4,5.51923]
[1742490354323,2.37037,1963.5,1963.4,4.5001]
[1742490354626,2.37037,1963.5,1963.4,45.3001]
[1742490354832,2.37037,1963.5,1963.4,46.31923]
[1742490355023,1.01907,1963.5,1963.4,46.31923]
[1742490355824,3.2078,1964.2,1963.4,45.3001]
[1742490356028,1.019,1963.7,1963.6,1.01898]
[1742490356223,1.019,1963.7,1963.6,5.56532214]
[1742490356625,1.01897,1963.7,1963.6,9.21830214]
[1742490356820,1.01895,1963.8,1963.7,1.01893]
[1742490357035,1.01895,1963.8,1963.7,2.34983]
[1742490357531,1.01895,1963.8,1963.7,1.3309]
[1742490357930,1.01895,1963.8,1963.7,2.34987]
[1742490358427,1.01895,1963.8,1963.7,1.3309]
[1742490358637,1.01895,1963.8,1963.7,2.34987]
[1742490360231,1.01895,1963.8,1963.7,1.3309]
[1742490360734,1.01897,1963.7,1963.6,0.00764214]
[1742490360929,2.32187,1963.7,1963.6,0.00764214]
[1742490361531,3.00477,1963.7,1963.6,0.00764214]
[1742490363232,1.01913,1963.4,1963.3,1.0332]
[1742490363433,1.01913,1963.4,1962.8,47.102]
[1742490363434,1.01944,1962.8,1962.7,0.6496]
[1742490363637,1.01944,1962.8,1962.7,5.2706]
[1742490363833,2.54823,1963.1,1962.7,46.0706]
[1742490364140,0.692,1963.3,1962.9,3.2078]
[1742490364330,2.54771,1963.5,1963.1,3.2078]
[1742490364533,1.02683214,1963.3,1963.2,2.43241]
[1742490365439,1.02682214,1963.3,1963.2,2.43241]
[1742490365737,0.00764214,1963.3,1963.2,15.19441]
[1742490366039,0.00764214,1963.3,1963.2,17.69441]
[1742490366241,1.01905,1963.6,1963.5,1.01907]
[1742490366443,1.01905,1963.6,1963.5,7.86287]
[1742490367740,1.01907,1963.5,1963.4,1.3499]
[1742490367946,1.01913,1963.4,1963.3,3.632]
[1742490368445,1.01918,1963.3,1963.2,42.1499]
[1742490368639,2.40588,1963.3,1963.2,42.1499]
[1742490371042,1.01928,1963.1,1963.0,3.628]
[1742490371242,1.01933,1963.0,1962.9,3.2078]
[1742490371439,2.40843,1963.0,1962.9,44.0078]
[1742490372145,2.40843,1963.0,1962.9,40.8]
[1742490372534,1.01944,1962.8,1962.7,3.63064214]
[1742490372947,1.01944,1962.8,1962.7,0.00764214]
[1742490373246,2.32054,1962.8,1962.7,40.80764214]
[1742490373638,2.32054,1962.8,1962.3,3.2078]
[1742490373639,1.01964,1962.4,1962.3,3.2078]
[1742490373838,3.23343,1962.7,1962.3,4.22746]
[1742490374033,1.01964,1962.4,1962.3,4.22746]
[1742490374342,1.01964,1962.4,1962.3,4.22747]
[1742490374539,1.3011,1962.5,1962.3,44.0078]
[1742490374941,1.01964,1962.4,1962.3,45.02746]
[1742490375137,1.01964,1962.4,1962.3,44.0078]
[1742490375843,1.01964,1962.4,1962.3,45.0275]
[1742490376445,1.01964,1962.4,1962.3,44.0078]
[1742490376643,1.01964,1962.4,1962.3,45.0275]
[1742490378147,1.01964,1962.4,1962.3,40.8]
[1742490378545,5.76431214,1962.6,1962.3,40.8]
[1742490378744,1.01964,1962.4,1962.3,40.8]
[1742490379445,3.21544214,1962.6,1962.3,41.81967]
[1742490379647,1.01964,1962.5,1962.4,1.01964]
[1742490379849,0.00764214,1962.6,1962.4,1.01964]
[1742490379850,1.02721214,1962.6,1962.4,1.01964]
[1742490380052,1.01959,1962.5,1962.4,1.01964]
[1742490380251,1.01959,1962.5,1962.4,40.8]
[1742490381850,5.75562,1963.4,1963.0,1.01933]
[1742490382051,1.4121,1963.2,1963.1,1.01928]
[1742490382255,4.22696,1963.4,1963.0,5.75609]
[1742490382454,2.43128,1963.3,1963.2,1.01923]
[1742490382854,1.01933,1963.0,1962.9,0.6713]
[1742490383349,7.16789,1963.3,1963.1,1.01923]
[1742490383350,2.43131,1963.3,1963.1,1.01923]
[1742490383753,1.01923,1963.2,1963.0,6.8048]
[1742490383955,2.43133,1963.2,1963.0,6.8048]
[1742490384154,2.43133,1963.2,1963.0,7.8241]
[1742490384449,2.43133,1963.2,1963.0,7.82411]
[1742490384450,1.4121,1963.2,1963.0,7.82411]
[1742490384658,2.43136,1963.2,1963.1,1.01928]
[1742490384847,1.01928,1963.1,1963.0,7.82411]
[1742490385243,1.01928,1963.1,1963.0,6.8048]
[1742490385756,1.01928,1963.1,1963.0,4.61633]
[1742490386052,1.01928,1963.1,1963.0,7.82413]
[1742490386554,2.43137,1963.2,1963.1,1.01928]
[1742490387158,1.01928,1963.1,1963.0,7.82408]
[1742490387356,1.01928,1963.1,1963.0,3.597]
[1742490387554,1.01933,1963.0,1962.9,0.6713]
[1742490387757,1.01933,1963.0,1962.8,3.8888]
[1742490387758,1.01938,1962.9,1962.8,8.49224]
[1742490388455,1.01938,1962.9,1962.8,7.4728]
[1742490388658,1.01938,1962.9,1962.8,8.49224]
[1742490388854,1.01937,1963.0,1962.9,1.01938]
[1742490389053,1.01931,1963.1,1963.0,1.01928]
[1742490389757,1.01933,1963.0,1962.9,2.42184]
[1742490389956,5.75547,1963.6,1963.0,2.54834]
[1742490390152,5.09432,1964.0,1963.1,4.6103]
[1742490390153,1.01923,1963.2,1963.1,4.6103]
[1742490390557,1.01923,1963.2,1963.1,1.4025]
[1742490390758,1.01928,1963.1,1963.0,0.00764214]
[1742490390957,2.42528,1963.1,1963.0,1.02697214]
[1742490391152,2.42528,1963.1,1963.0,2.34057214]
[1742490391661,1.01925,1963.2,1963.1,1.01928]
[1742490391863,2.4252,1963.3,1963.2,1.01923]
[1742490392053,2.4252,1963.3,1963.2,2.33283]
[1742490392652,2.54774,1963.5,1963.4,1.01908]
[1742490392653,1.0191,1963.5,1963.4,1.01908]
[1742490392858,1.0191,1963.5,1963.4,4.22688]
[1742490393056,1.01913,1963.4,1963.3,0.6949]
[1742490393356,2.42513,1963.4,1963.3,4.92185]
[1742490394260,1.01928,1963.2,1963.1,4.22708]
[1742490394559,1.01928,1963.2,1963.0,3.59864214]
[1742490394560,1.01928,1963.1,1963.0,4.61794214]
[1742490394766,2.31388,1963.1,1963.0,7.82577214]
[1742490395153,1.01927,1963.2,1963.1,1.01928]
[1742490395359,1.01908,1963.6,1963.5,1.01903]
[1742490395564,2.31368,1963.6,1963.5,1.01903]
[1742490397760,3.2078,1964.1,1963.4,3.2078]
[1742490398066,2.36425,1963.7,1963.6,1.01898]
[1742490398264,1.3857,1964.0,1963.7,2.54743]
[1742490398569,1.01873,1964.3,1964.2,1.01868]
[1742490398964,1.01866,1964.3,1964.2,4.22648]
[1742490399169,1.01866,1964.3,1964.2,1.01868]
[1742490399461,1.01871,1964.2,1964.1,0.00764214]
[1742490399683,1.01871,1964.2,1963.8,1.01888]
[1742490399684,1.01892,1963.9,1963.8,1.01888]
[1742490400259,1.01894,1963.8,1963.7,1.01893]
[1742490400459,2.04,1963.9,1963.6,6.7988]
[1742490400759,1.01893,1963.8,1963.7,1.01892]
[1742490400963,2.35483,1963.8,1963.7,1.01892]
[1742490401162,1.3359,1963.8,1963.7,1.01892]
[1742490401762,1.01897,1963.7,1963.6,7.82542214]
[1742490402458,1.01897,1963.7,1963.6,4.23442214]
[1742490402665,1.01897,1963.7,1963.6,3.21544214]
[1742490402860,1.01897,1963.7,1963.6,0.00764214]
[1742490403765,2.54705,1964.0,1963.6,0.00764214]
[1742490404065,1.01892,1963.8,1963.7,4.22676]
[1742490404265,1.01892,1963.8,1963.7,1.01896]
[1742490404467,1.01892,1963.8,1963.6,3.60264214]
[1742490404468,1.01897,1963.7,1963.6,4.62163214]
[1742490405262,1.01896,1963.8,1963.7,1.01892]
[1742490405460,2.34776,1963.8,1963.7,1.01892]
[1742490406270,2.34777,1963.8,1963.7,1.01897]
[1742490406480,1.01897,1963.7,1963.6,3.60264214]
[1742490406670,2.33007,1963.7,1963.6,0.00764214]
[1742490406968,3.02387,1963.7,1963.6,0.00764214]
[1742490407176,1.01913,1963.4,1963.3,3.2078]
[1742490407368,7.7127,1963.7,1963.2,40.8]
[1742490407369,1.01918,1963.3,1963.2,40.8]
[1742490407677,2.33032,1963.3,1963.0,3.2078]
[1742490407974,1.01924,1963.2,1963.1,41.81928]
[1742490408172,1.3111,1963.2,1963.1,41.81928]
[1742490408375,2.33033,1963.2,1963.1,41.81928]
[1742490409171,2.5477,1963.5,1963.2,1.01919]
[1742490409172,3.59,1963.5,1963.2,1.01919]
[1742490409475,1.3668,1963.4,1963.3,1.01918]
[1742490409675,1.3668,1963.4,1963.3,2.35988]
[1742490410068,2.38597,1963.4,1963.3,2.35988]
[1742490410273,2.38597,1963.4,1963.3,1.3407]
[1742490410773,1.01918,1963.3,1963.2,3.2078]
[1742490410971,1.01923,1963.2,1963.1,43.15997]
[1742490411178,1.01923,1963.2,1963.1,40.8]
[1742490411375,2.34013,1963.2,1963.1,40.8]
[1742490411773,2.34013,1963.2,1963.1,41.81928]
[1742490411774,1.3209,1963.2,1963.1,41.81928]
[1742490412178,1.3668,1963.3,1963.2,1.01923]
[1742490412380,1.01914,1963.4,1963.3,1.01918]
[1742490412574,1.01911,1963.5,1963.4,1.01912]
[1742490412876,1.0191,1963.5,1963.4,4.22687]
[1742490413082,0.6762,1963.6,1963.5,1.01907]
[1742490413378,1.69523,1963.6,1963.5,2.42927]
[1742490413767,2.34011,1963.7,1963.6,1.01902]
[1742490413968,1.01904,1963.6,1963.5,1.01903]
[1742490414172,1.01907,1963.5,1963.4,4.22691]
[1742490414376,1.01907,1963.5,1963.4,1.4102]
[1742490414583,1.66407,1963.5,1963.4,1.4102]
[1742490414782,1.01913,1963.4,1963.3,1.01915]
[1742490414979,1.01918,1963.3,1963.2,3.2078]
[1742490415186,1.01923,1963.2,1963.1,43.21018]
[1742490415375,2.30363,1963.2,1963.1,43.21018]
[1742490415678,2.30363,1963.2,1963.1,42.1909]
[1742490415879,2.30363,1963.2,1963.1,40.8]
[1742490416075,1.2844,1963.2,1963.1,41.81928]
[1742490416378,2.30363,1963.2,1963.1,41.81928]
[1742490416678,1.2844,1963.2,1963.1,41.81928]
[1742490417181,1.69042,1963.3,1963.2,1.01923]
[1742490417475,1.69042,1963.3,1963.2,2.41013]